bitfinex-derivatives/quotes_SOLF0:USTF0_20250623
["timestamp","ask_amount","ask_price","bid_price","bid_amount"]
[1750693372221,7.4693,133.83,133.8,7.4702]
[1750693372420,2.3744,133.86,133.79,17.41135143]
[1750693373228,7.4688,133.84,133.81,7.4698]
[1750693373420,2.3744,133.86,133.8,8.16470592]
[1750693373819,8.16470592,133.85,133.79,9.24664551]
[1750693374020,2.3744,133.86,133.78,9.24664551]
[1750693374021,8.16470592,133.83,133.78,9.24664551]
[1750693374233,8.16470592,133.83,133.77,61.47115143]
[1750693374434,8.16470592,133.83,133.78,7.4716]
[1750693374634,41.62,133.84,133.77,61.47115143]
[1750693374635,49.78470592,133.84,133.77,61.47115143]
[1750693374934,2.514,133.87,133.81,8.16470592]
[1750693374935,44.134,133.87,133.81,8.16470592]
[1750693375130,41.62,133.87,133.81,8.16470592]
[1750693375436,7.4687,133.84,133.81,7.4698]
[1750693376035,7.4681,133.85,133.82,7.4692]
[1750693376230,41.62,133.87,133.8,17.41135143]
[1750693376637,7.4676,133.86,133.83,7.4689]
[1750693377134,7.4671,133.87,133.84,7.468]
[1750693377336,5.62251337,133.89,133.82,8.16470592]
[1750693377535,7.4671,133.87,133.84,7.4684]
[1750693377931,52.10950592,133.9,133.84,7.4684]
[1750693378129,7.4672,133.87,133.84,7.4684]
[1750693378338,52.10950592,133.9,133.84,7.4684]
[1750693378636,5.61399175,133.89,133.84,7.4684]
[1750693378837,7.4672,133.87,133.84,7.4684]
[1750693379735,7.4673,133.86,133.84,7.4684]
[1750693379931,7.4673,133.86,133.83,7.4687]
[1750693380435,7.467,133.87,133.84,8.16470592]
[1750693380740,52.10950592,133.9,133.84,8.16470592]
[1750693380933,7.4671,133.87,133.84,15.63270592]
[1750693381135,43.9448,133.9,133.84,8.16470592]
[1750693381328,42.5,133.93,133.89,7.4656]
[1750693381537,5.61699529,133.94,133.88,8.16470592]
[1750693381738,13.42893326,133.95,133.88,8.16470592]
[1750693381936,10.66420592,133.95,133.88,8.16470592]
[1750693382134,7.4643,133.92,133.9,7.4651]
[1750693382334,10.66420592,133.95,133.9,7.4651]
[1750693382534,7.4643,133.92,133.89,7.4651]
[1750693382735,7.4643,133.92,133.89,8.16470592]
[1750693383342,8.16470592,133.91,133.85,2.3621]
[1750693383842,8.16470592,133.91,133.81,9.24664551]
[1750693384038,13.01158423,133.9,133.78,8.16470592]
[1750693384231,8.37448423,133.89,133.76,9.24664551]
[1750693384544,12.45685598,133.87,133.79,12.45685598]
[1750693384739,7.469,133.84,133.8,7.4705]
[1750693384943,12.45685598,133.87,133.79,57.05685598]
[1750693385140,44.6,133.88,133.83,12.45685598]
[1750693385840,7.467,133.87,133.83,7.4689]
[1750693386044,7.467,133.87,133.83,19.92575598]
[1750693386541,7.467,133.87,133.84,7.4683]
[1750693387341,7.467,133.87,133.83,19.92565598]
[1750693387645,7.467,133.87,133.83,7.4688]
[1750693387944,7.4674,133.86,133.83,19.92565598]
[1750693388148,7.4674,133.86,133.83,7.4688]
[1750693388339,44.6,133.88,133.84,7.4684]
[1750693388540,44.6,133.88,133.83,12.45685598]
[1750693388942,44.6,133.88,133.84,7.4681]
[1750693389242,44.6,133.88,133.83,12.45685598]
[1750693389846,52.0665,133.88,133.83,12.45685598]
[1750693390142,44.6,133.88,133.82,12.45685598]
[1750693390343,7.4671,133.87,133.82,12.45685598]
[1750693390540,44.6,133.88,133.82,12.45685598]
[1750693390932,7.4677,133.86,133.82,12.45685598]
[1750693391143,44.6,133.88,133.82,12.45685598]
[1750693391445,7.4676,133.86,133.82,12.45685598]
[1750693391639,7.4676,133.86,133.83,7.4686]
[1750693391846,44.6,133.88,133.81,2.3805]
[1750693392145,44.6,133.88,133.82,19.92605598]
[1750693392548,44.6,133.88,133.81,2.3805]
[1750693392742,44.6,133.88,133.82,12.45685598]
[1750693393341,57.05685598,133.88,133.8,14.77035598]
[1750693393741,57.05685598,133.88,133.8,22.24065598]
[1750693393942,57.05685598,133.88,133.8,14.77035598]
[1750693394246,44.6,133.88,133.8,24.01700149]
[1750693394445,44.6,133.88,133.8,14.77035598]
[1750693394642,7.4693,133.83,133.8,14.77035598]
[1750693394841,12.45685598,133.87,133.79,44.6]
[1750693395041,44.6,133.88,133.8,12.45685598]
[1750693395242,7.4682,133.85,133.8,12.45685598]
[1750693395743,7.4688,133.84,133.79,53.84664551]
[1750693395944,7.4688,133.84,133.8,12.45685598]
[1750693396353,7.468,133.85,133.8,12.45685598]
[1750693397054,7.468,133.85,133.82,7.4695]
[1750693397349,7.4685,133.84,133.79,66.30350149]
[1750693397546,7.4685,133.84,133.81,7.4697]
[1750693397947,7.469,133.83,133.81,7.4697]
[1750693398145,12.45685598,133.87,133.81,7.4697]
[1750693398446,7.4712,133.79,133.78,9.24664551]
[1750693398662,12.45685598,133.82,133.75,2.3724]
[1750693398951,57.07685598,133.83,133.78,7.4717]
[1750693399251,7.4703,133.81,133.78,7.4717]
[1750693399446,44.62,133.83,133.78,12.45685598]
[1750693399649,44.62,133.83,133.77,53.86664551]
[1750693399855,2.4984,133.85,133.78,12.45685598]
[1750693400150,57.07685598,133.86,133.78,12.45685598]
[1750693400449,7.4685,133.84,133.8,7.4703]
[1750693400642,7.4685,133.84,133.79,2.5261]
[1750693400953,44.62,133.86,133.8,12.45685598]
[1750693401151,44.62,133.86,133.79,2.5261]
[1750693401347,44.62,133.86,133.8,12.45685598]
[1750693401549,7.4685,133.84,133.81,7.4699]
[1750693401749,44.62,133.86,133.8,12.45685598]
[1750693402148,7.4682,133.85,133.82,7.4693]
[1750693402347,44.62,133.86,133.79,11.77274551]
[1750693402654,44.62,133.86,133.8,12.45685598]
[1750693402848,44.62,133.86,133.79,9.24664551]
[1750693403049,12.45685598,133.85,133.76,21.70350149]
[1750693403357,44.62,133.86,133.8,7.4706]
[1750693403560,44.62,133.86,133.78,12.45685598]
[1750693403859,7.4687,133.84,133.8,19.92715598]
[1750693404153,7.4687,133.84,133.78,66.32350149]
[1750693406253,7.469,133.83,133.79,8.17369037]
[1750693406454,7.469,133.83,133.8,7.4703]
[1750693408143,7.469,133.83,133.81,7.47]
[1750693408345,8.17791691,133.82,133.76,9.24664551]
[1750693408546,8.17791691,133.82,133.75,19.72456242]
[1750693408858,6.1104727,133.85,133.75,19.72456242]
[1750693408859,4.6351,133.89,133.77,8.17791691]
[1750693409049,8.17791691,133.84,133.77,52.79791691]
[1750693409250,8.17791691,133.84,133.78,7.4715]
[1750693409555,8.17791691,133.84,133.77,52.79791691]
[1750693409753,6.10359912,133.83,133.79,7.4712]
[1750693409956,7.4702,133.81,133.79,7.4712]
[1750693410846,8.17791691,133.84,133.79,7.4712]
[1750693411050,52.79791691,133.84,133.78,7.4716]
[1750693411765,8.17791691,133.82,133.77,52.0921]
[1750693412055,8.17791691,133.8,133.75,2.3]
[1750693412458,7.4719,133.78,133.76,7.4726]
[1750693412854,7.4719,133.78,133.75,2.3]
[1750693413054,7.4719,133.78,133.75,9.7731]
[1750693413656,7.4719,133.78,133.76,7.4727]
[1750693413865,7.4715,133.79,133.75,2.3]
[1750693414562,7.4709,133.8,133.75,10.47791691]
[1750693414761,8.17791691,133.82,133.76,8.17791691]
[1750693415351,7.4707,133.8,133.76,8.17791691]
[1750693415959,2.4013,133.83,133.76,8.17791691]
[1750693416161,2.4013,133.83,133.76,10.55311691]
[1750693416361,52.89791691,133.84,133.8,7.4706]
[1750693416757,52.89791691,133.84,133.77,44.72]
[1750693416758,52.89791691,133.84,133.78,8.17791691]
[1750693416955,7.4704,133.81,133.77,44.72]
[1750693417264,8.17791691,133.82,133.77,44.72]
[1750693417457,7.4705,133.81,133.78,7.4715]
[1750693417757,8.17791691,133.83,133.77,44.72]
[1750693418162,8.17791691,133.83,133.79,7.471]
[1750693418766,7.4701,133.81,133.79,7.471]
[1750693418964,8.17791691,133.83,133.78,7.4715]
[1750693419265,7.4707,133.81,133.78,7.4715]
[1750693419766,7.4707,133.8,133.78,7.4715]
[1750693419963,7.4707,133.8,133.77,52.1921]
[1750693421056,7.4707,133.8,133.78,7.4717]
[1750693421252,8.17791691,133.83,133.78,7.4717]
[1750693421458,44.72,133.84,133.78,7.4717]
[1750693421659,8.17791691,133.82,133.78,7.4717]
[1750693422167,7.4707,133.8,133.78,7.4717]
[1750693422862,7.4712,133.79,133.77,7.4723]
[1750693423071,8.17791691,133.81,133.77,7.4723]
[1750693423270,8.17791691,133.83,133.74,53.96664551]
[1750693423462,8.17791691,133.83,133.76,8.17791691]
[1750693423662,8.17791691,133.83,133.78,7.4715]
[1750693423863,8.17791691,133.83,133.76,8.17791691]
[1750693424063,7.4699,133.82,133.79,7.4709]
[1750693424261,8.17791691,133.83,133.79,7.4709]
[1750693424758,8.17791691,133.83,133.78,7.4715]
[1750693425163,7.4704,133.81,133.78,7.4715]
[1750693425369,7.4704,133.81,133.79,7.4711]
[1750693425667,8.17791691,133.83,133.75,8.17791691]
[1750693425869,8.17791691,133.82,133.78,7.4715]
[1750693426375,7.4702,133.81,133.78,7.4715]
[1750693426569,8.17791691,133.82,133.77,7.4721]
[1750693426963,8.17791691,133.83,133.77,8.17791691]
[1750693427175,8.17791691,133.83,133.78,7.4715]
[1750693427576,7.4708,133.8,133.78,7.4715]
[1750693428072,7.4704,133.81,133.79,7.4712]
[1750693428575,8.17791691,133.83,133.79,7.4712]
[1750693428784,7.47,133.82,133.79,7.4712]
[1750693429186,7.47,133.82,133.8,7.4703]
[1750693429482,44.72,133.84,133.77,8.17791691]
[1750693429678,44.72,133.84,133.77,17.42456242]
[1750693430080,7.4696,133.82,133.8,7.4704]
[1750693430482,7.4696,133.82,133.79,7.4709]
[1750693430683,7.4696,133.82,133.77,8.17791691]
[1750693431079,7.4696,133.82,133.79,7.4708]
[1750693431883,7.4703,133.81,133.78,7.4714]
[1750693432082,7.4703,133.81,133.77,8.17791691]
[1750693432588,7.4703,133.81,133.78,7.4715]
[1750693433385,8.17791691,133.83,133.76,7.4723]
[1750693433585,8.17791691,133.83,133.76,8.17791691]
[1750693433786,8.17791691,133.83,133.76,17.42456242]
[1750693434196,8.17791691,133.83,133.77,7.4721]
[1750693435389,7.471,133.8,133.77,7.4721]
[1750693435881,7.471,133.8,133.78,7.4717]
[1750693437188,7.4704,133.81,133.79,7.4712]
[1750693437489,52.89791691,133.84,133.76,17.42456242]
[1750693437689,7.4704,133.81,133.76,17.42456242]
[1750693438190,7.4704,133.81,133.78,7.4714]
[1750693438689,52.89791691,133.84,133.78,8.17791691]
[1750693438890,6.07523578,133.83,133.78,8.17791691]
[1750693439095,52.89791691,133.84,133.77,9.24664551]
[1750693439290,6.07466313,133.83,133.78,7.4716]
[1750693439587,52.89791691,133.84,133.78,7.4716]
[1750693439889,8.17791691,133.82,133.76,9.24664551]
[1750693440084,8.17791691,133.82,133.75,17.42456242]
[1750693440485,7.4722,133.78,133.75,24.89776242]
[1750693440686,6.03940977,133.83,133.75,9.24664551]
[1750693440881,8.17791691,133.77,133.73,9.24664551]
[1750693441086,52.89791691,133.77,133.72,13.71777976]
[1750693441292,44.72,133.77,133.72,13.71777976]
[1750693441489,52.89791691,133.8,133.73,9.24664551]
[1750693441680,8.17791691,133.76,133.73,9.24664551]
[1750693441884,8.17791691,133.74,133.72,4.47113425]
[1750693442092,7.4746,133.73,133.72,4.47113425]
[1750693443186,7.4771,133.69,133.67,9.24664551]
[1750693443485,8.17791691,133.7,133.64,9.24664551]
[1750693443794,52.89791691,133.72,133.65,9.24664551]
[1750693444094,52.89791691,133.72,133.63,16.32467515]
[1750693444095,44.72,133.72,133.64,17.42456242]
[1750693444283,52.91791691,133.71,133.64,17.42456242]
[1750693444486,8.17791691,133.71,133.64,17.42456242]
[1750693444789,8.17791691,133.71,133.63,9.24664551]
[1750693444987,45.34,133.72,133.63,9.24664551]
[1750693445194,7.4774,133.68,133.64,7.4794]
[1750693445494,8.17791691,133.69,133.63,8.17791691]
[1750693445792,45.34,133.71,133.63,9.24664551]
[1750693445981,45.34,133.71,133.64,8.17791691]
[1750693446292,45.34,133.71,133.61,59.81865877]
[1750693446293,8.17791691,133.7,133.62,9.24664551]
[1750693446592,8.17791691,133.7,133.63,8.17791691]
[1750693446794,7.478,133.67,133.62,9.24664551]
[1750693446992,8.17791691,133.7,133.62,17.42456242]
[1750693447491,53.51791691,133.71,133.64,8.17791691]
[1750693447794,52.8162,133.71,133.67,7.4779]
[1750693447989,53.51791691,133.71,133.65,8.17791691]
[1750693448387,7.4769,133.69,133.64,8.17791691]
[1750693448587,53.51791691,133.71,133.64,8.17791691]
[1750693448789,60.99391691,133.71,133.67,7.4778]
[1750693448990,45.34,133.71,133.67,7.4778]
[1750693449394,45.34,133.71,133.67,8.17791691]
[1750693449900,53.53791691,133.74,133.67,8.17791691]
[1750693450403,7.4748,133.73,133.69,7.4764]
[1750693450698,7.4748,133.73,133.67,8.17791691]
[1750693450699,53.53791691,133.74,133.67,8.17791691]
[1750693451295,53.53791691,133.74,133.66,4.8537]
[1750693451494,53.53791691,133.74,133.67,8.17791691]
[1750693451698,53.53791691,133.74,133.66,4.8537]
[1750693451903,52.8341,133.74,133.71,7.4757]
[1750693452286,9.8009,133.75,133.69,8.17791691]
[1750693452497,58.28551691,133.79,133.73,8.17791691]
[1750693452692,4.7476,133.79,133.73,8.17791691]
[1750693452997,4.7476,133.79,133.7,53.53791691]
[1750693452998,2.2787,133.79,133.75,8.17791691]
[1750693453200,47.6684,133.8,133.75,8.17791691]
[1750693453712,7.4715,133.79,133.72,4.8537]
[1750693453900,7.4715,133.79,133.75,8.17791691]
[1750693454195,55.1392,133.8,133.77,7.472]
[1750693454398,45.36,133.8,133.72,4.8537]
[1750693454595,45.36,133.8,133.76,8.17791691]
[1750693454791,52.831,133.8,133.76,15.65051691]
[1750693455098,52.831,133.8,133.76,8.17791691]
[1750693455295,58.28711691,133.83,133.74,45.36]
[1750693455493,8.17791691,133.81,133.75,8.17791691]
[1750693455697,8.17791691,133.79,133.73,8.17791691]
[1750693455999,53.53791691,133.79,133.73,7.4742]
[1750693456202,53.53791691,133.79,133.72,8.17791691]
[1750693456609,7.4738,133.75,133.72,15.65301691]
[1750693456811,53.53791691,133.79,133.72,15.65301691]
[1750693456999,8.17791691,133.78,133.72,15.65301691]
[1750693457196,7.4733,133.76,133.72,8.17791691]
[1750693457401,7.4733,133.76,133.73,7.4745]
[1750693457900,53.53791691,133.79,133.74,7.4739]
[1750693457901,7.4725,133.77,133.74,7.4739]
[1750693458297,7.4725,133.77,133.73,15.65201691]
[1750693458896,7.4729,133.76,133.73,7.4741]
[1750693459092,7.4729,133.76,133.73,15.65201691]
[1750693459707,7.4729,133.76,133.73,8.17791691]
[1750693460099,53.53791691,133.79,133.73,8.17791691]
[1750693460100,7.4735,133.75,133.73,8.17791691]
[1750693460807,7.474,133.74,133.72,8.17791691]
[1750693461305,7.4737,133.75,133.72,8.17791691]
[1750693461799,7.4737,133.75,133.72,15.65251691]
[1750693461996,45.36,133.79,133.72,8.17791691]
[1750693462193,53.53791691,133.79,133.73,8.17791691]
[1750693462497,53.53791691,133.79,133.74,7.4739]
[1750693462498,45.36,133.79,133.74,7.4739]
[1750693462698,45.36,133.79,133.75,8.17791691]
[1750693463096,52.8315,133.79,133.75,8.17791691]
[1750693463606,7.4721,133.78,133.75,8.17791691]
[1750693463807,45.36,133.79,133.74,8.17791691]
[1750693464207,45.36,133.79,133.74,19.93778032]
[1750693464507,45.36,133.79,133.74,12.46418032]
[1750693464902,7.4722,133.78,133.74,12.46418032]
[1750693465407,7.4725,133.77,133.74,19.93788032]
[1750693465610,45.34,133.81,133.74,12.46418032]
[1750693465812,45.34,133.81,133.74,19.93818032]
[1750693466005,45.34,133.81,133.72,45.36]
[1750693466204,45.34,133.81,133.73,12.46418032]
[1750693466410,7.4732,133.76,133.73,19.93848032]
[1750693466709,7.4732,133.76,133.73,12.46418032]
[1750693466912,12.46418032,133.79,133.72,45.36]
[1750693467112,7.4732,133.76,133.72,57.82418032]
[1750693467497,7.4732,133.76,133.73,7.4742]
[1750693468409,7.4736,133.75,133.72,65.29918032]
[1750693468809,7.4738,133.75,133.72,7.4749]
[1750693469311,12.46418032,133.79,133.7,12.46418032]
[1750693469504,7.4734,133.76,133.72,12.46418032]
[1750693469917,12.46418032,133.79,133.72,12.46418032]
[1750693470111,7.4735,133.75,133.72,12.46418032]
[1750693470417,12.46418032,133.79,133.71,12.46418032]
[1750693471412,12.46418032,133.79,133.72,7.4749]
[1750693471413,7.4735,133.75,133.72,7.4749]
[1750693472518,12.46418032,133.79,133.73,7.4745]
[1750693472519,7.4732,133.76,133.73,7.4745]
[1750693473117,12.46418032,133.79,133.71,12.46418032]
[1750693473718,12.46418032,133.79,133.69,54.58664551]
[1750693473921,14.94578032,133.79,133.7,12.46418032]
[1750693474121,14.94578032,133.79,133.71,7.4753]
[1750693474122,7.4744,133.74,133.71,7.4753]
[1750693474919,12.46418032,133.77,133.69,57.80418032]
[1750693475118,44.86,133.76,133.69,57.80418032]
[1750693475319,44.86,133.76,133.71,7.4757]
[1750693475909,44.86,133.76,133.69,57.80418032]
[1750693476116,44.86,133.76,133.72,7.475]
[1750693476417,7.4739,133.75,133.72,7.475]
[1750693476617,7.4739,133.75,133.69,57.80418032]
[1750693477016,44.86,133.78,133.71,12.46418032]
[1750693477215,44.86,133.78,133.73,7.4743]
[1750693478018,44.86,133.78,133.71,12.46418032]
[1750693478623,7.473,133.76,133.73,7.4742]
[1750693478815,7.473,133.76,133.71,12.46418032]
[1750693479017,44.86,133.78,133.71,12.46418032]
[1750693479820,44.86,133.78,133.75,7.473]
[1750693480816,7.4724,133.77,133.74,7.4737]
[1750693481015,7.4724,133.77,133.72,12.46418032]
[1750693481521,52.332,133.78,133.75,7.4731]
[1750693481724,44.86,133.78,133.75,7.4731]
[1750693481921,52.3321,133.78,133.75,7.4731]
[1750693482226,7.4721,133.78,133.75,7.4731]
[1750693482527,7.4721,133.78,133.72,12.46418032]
[1750693482528,7.4721,133.78,133.72,21.71082583]
[1750693482819,7.4723,133.77,133.72,12.46418032]
[1750693483235,7.4723,133.77,133.75,7.4732]
[1750693483424,7.4723,133.77,133.72,12.46418032]
[1750693484320,7.4723,133.77,133.73,8.18094531]
[1750693484522,7.4723,133.77,133.74,7.4736]
[1750693484721,7.4723,133.77,133.73,8.18094531]
[1750693485221,8.18094531,133.76,133.69,62.76759082]
[1750693485526,10.65904531,133.76,133.69,53.52094531]
[1750693485820,7.4751,133.73,133.7,7.476]
[1750693486023,10.65904531,133.76,133.7,7.476]
[1750693486216,7.4756,133.72,133.69,60.99754531]
[1750693486726,7.4749,133.73,133.7,7.4762]
[1750693487032,10.65904531,133.76,133.69,53.52094531]
[1750693487216,2.4781,133.76,133.72,7.4746]
[1750693487529,2.4781,133.76,133.69,62.76759082]
[1750693487716,7.4743,133.74,133.71,7.4756]
[1750693488927,2.4781,133.76,133.71,7.4756]
[1750693489432,7.4743,133.74,133.71,7.4756]
[1750693490022,7.4743,133.74,133.72,7.475]
[1750693491722,7.4737,133.75,133.72,7.475]
[1750693492723,7.474,133.74,133.72,7.475]
[1750693493432,8.18094531,133.75,133.71,7.4754]
[1750693493927,7.4743,133.74,133.71,7.4754]
[1750693494322,7.4743,133.74,133.72,7.475]
[1750693494528,7.4737,133.75,133.7,9.24664551]
[1750693495123,7.4737,133.75,133.72,7.4749]
[1750693496835,7.4741,133.74,133.72,7.4749]
[1750693497334,7.4739,133.75,133.72,7.4749]
[1750693499741,9.9514,133.76,133.73,7.4743]
[1750693499946,2.4781,133.76,133.72,9.24664551]
[1750693500354,7.4738,133.75,133.72,16.72134551]
[1750693500744,2.4781,133.76,133.72,9.24664551]
[1750693500955,2.4781,133.76,133.71,16.72194551]
[1750693501154,6.09688605,133.75,133.71,9.24664551]
[1750693501359,8.18094531,133.73,133.68,9.24664551]
[1750693501652,4.8762,133.75,133.67,7.4776]
[1750693501653,53.04094531,133.72,133.67,9.24664551]
[1750693501855,7.4758,133.71,133.69,7.4765]
[1750693502153,44.86,133.72,133.67,9.24664551]
[1750693502356,7.476,133.71,133.68,7.4771]
[1750693502548,53.04094531,133.72,133.67,9.24664551]
[1750693502854,8.18094531,133.7,133.66,9.24664551]
[1750693503347,8.18094531,133.7,133.64,9.24664551]
[1750693503546,8.18094531,133.68,133.64,9.24664551]
[1750693503748,53.04094531,133.68,133.64,9.24664551]
[1750693504451,7.4788,133.66,133.64,9.24664551]
[1750693504652,7.4788,133.66,133.63,21.27667515]
[1750693505155,7.4788,133.66,133.64,7.4795]
[1750693505358,44.86,133.68,133.64,8.18094531]
[1750693505748,44.86,133.68,133.65,7.4785]
[1750693505749,52.3377,133.68,133.65,7.4785]
[1750693506159,44.86,133.68,133.65,7.4785]
[1750693506659,7.478,133.67,133.64,7.4794]
[1750693506860,53.04094531,133.68,133.63,9.31852703]
[1750693507258,53.04094531,133.68,133.63,16.79842703]
[1750693507453,53.04094531,133.68,133.63,7.4799]
[1750693507658,53.04094531,133.68,133.61,21.97772046]
[1750693507860,7.4782,133.67,133.61,21.97772046]
[1750693508466,60.51864531,133.68,133.61,21.97772046]
[1750693508761,53.04094531,133.68,133.61,21.97772046]
[1750693508962,7.4788,133.66,133.63,7.4799]
[1750693510263,7.4792,133.65,133.62,7.4805]
[1750693510659,8.18094531,133.66,133.53,668.9575955]
[1750693510961,8.18094531,133.66,133.58,8.18094531]
[1750693511270,8.18094531,133.66,133.6,8.18094531]
[1750693511664,8.18094531,133.66,133.57,20.7488002]
[1750693511963,44.86,133.68,133.6,8.18094531]
[1750693512264,7.4798,133.64,133.61,7.4811]
[1750693513065,7.4792,133.65,133.59,57.98544531]
[1750693513260,44.86,133.68,133.59,49.8045]
[1750693513557,7.4795,133.65,133.6,8.18094531]
[1750693513762,8.18094531,133.67,133.6,8.18094531]
[1750693514064,7.4794,133.65,133.62,7.4806]
[1750693514560,8.18094531,133.67,133.62,7.4806]
[1750693514864,8.18094531,133.67,133.6,8.18094531]
[1750693515167,8.18094531,133.67,133.59,49.8045]
[1750693515361,7.4802,133.63,133.59,57.98544531]
[1750693515659,8.18094531,133.61,133.57,18.3957002]
[1750693516262,7.483,133.58,133.57,18.3957002]
[1750693516674,7.483,133.58,133.54,8.18094531]
[1750693516855,7.4827,133.59,133.54,8.18094531]
[1750693517060,52.00094531,133.62,133.54,8.18094531]
[1750693517259,52.00094531,133.62,133.51,52.55398527]
[1750693517573,8.18094531,133.6,133.51,51.2512]
[1750693517867,8.18094531,133.6,133.53,8.18094531]
[1750693518260,7.4833,133.58,133.55,7.4843]
[1750693518469,8.18094531,133.6,133.55,7.4843]
[1750693518966,7.4832,133.58,133.54,7.4849]
[1750693519166,8.18094531,133.6,133.54,7.4849]
[1750693519555,7.4832,133.58,133.54,7.4849]
[1750693520063,7.4832,133.58,133.55,7.4845]
[1750693520265,8.18094531,133.6,133.55,7.4845]
[1750693520459,2.5153,133.63,133.57,8.18094531]
[1750693520660,2.5153,133.63,133.56,43.84]
[1750693520870,2.5153,133.63,133.58,8.18094531]
[1750693521265,9.9957,133.63,133.58,8.18094531]
[1750693521766,52.02094531,133.65,133.6,7.4815]
[1750693522066,52.02094531,133.65,133.58,8.18094531]
[1750693522462,2.429,133.66,133.6,8.18094531]
[1750693522865,7.4793,133.65,133.62,7.4807]
[1750693523262,9.9077,133.66,133.63,7.4799]
[1750693523469,2.429,133.66,133.58,2.4286]
[1750693523864,51.3181,133.67,133.61,8.18094531]
[1750693524064,51.3181,133.67,133.63,8.18094531]
[1750693524567,43.84,133.67,133.63,8.18094531]
[1750693524870,7.4776,133.68,133.64,8.18094531]
[1750693525671,7.4776,133.68,133.64,7.4793]
[1750693525971,7.4781,133.67,133.64,7.4793]
[1750693526862,7.4776,133.68,133.65,7.479]
[1750693527171,7.4776,133.68,133.63,8.18094531]
[1750693527670,7.478,133.67,133.63,8.18094531]
[1750693527870,8.18094531,133.68,133.61,43.84]
[1750693528069,8.18094531,133.67,133.61,43.84]
[1750693528261,43.84,133.66,133.6,8.18094531]
[1750693528766,43.84,133.66,133.58,46.2686]
[1750693528961,43.84,133.66,133.57,4.808]
[1750693528962,10.66184531,133.65,133.57,12.98894531]
[1750693529364,10.66184531,133.65,133.59,8.18094531]
[1750693529767,7.4802,133.63,133.59,8.18094531]
[1750693529964,10.66184531,133.65,133.59,8.18094531]
[1750693530365,10.66184531,133.65,133.6,7.4816]
[1750693530665,7.4807,133.62,133.59,8.18094531]
[1750693531274,10.66184531,133.65,133.59,8.18094531]
[1750693531472,10.66184531,133.65,133.59,15.66314531]
[1750693531674,7.4812,133.62,133.59,15.66314531]
[1750693531867,2.4809,133.65,133.59,7.4822]
[1750693532070,8.18094531,133.64,133.59,7.4822]
[1750693532266,7.4812,133.62,133.59,7.4822]
[1750693532670,8.18094531,133.64,133.59,7.4822]
[1750693533071,8.18094531,133.64,133.58,7.4827]
[1750693533278,8.18094531,133.62,133.55,52.02094531]
[1750693533570,52.02094531,133.62,133.55,52.02094531]
[1750693533777,52.02094531,133.62,133.56,7.4838]
[1750693533968,43.84,133.62,133.56,7.4838]
[1750693534169,8.18094531,133.61,133.56,7.4838]
[1750693534377,8.18094531,133.61,133.57,7.4833]
[1750693535073,7.4824,133.59,133.57,7.4833]
[1750693535263,8.18094531,133.61,133.56,7.4839]
[1750693535468,8.18094531,133.61,133.54,13.02994531]
[1750693535669,7.4836,133.57,133.54,8.18094531]
[1750693535976,8.18094531,133.59,133.54,8.18094531]
[1750693536179,8.18094531,133.55,133.5,4.52633344]
[1750693537278,7.4861,133.53,133.5,12.01343344]
[1750693537472,8.18094531,133.55,133.5,12.01343344]
[1750693537974,8.18094531,133.51,133.44,10.48014531]
[1750693538475,44.86,133.52,133.45,12.52105984]
[1750693539085,44.86,133.54,133.47,12.52105984]
[1750693539280,57.38105984,133.55,133.47,12.52105984]
[1750693539583,7.4855,133.54,133.51,7.4866]
[1750693539777,57.38105984,133.55,133.47,12.52105984]
[1750693539975,7.4853,133.54,133.51,7.4867]
[1750693540277,57.38105984,133.56,133.47,12.52105984]
[1750693540975,57.38105984,133.56,133.46,106.86]
[1750693541279,7.4855,133.54,133.5,7.4872]
[1750693541676,7.4855,133.54,133.48,12.52105984]
[1750693541883,7.4855,133.54,133.51,7.4866]
[1750693542379,7.4848,133.55,133.52,7.4863]
[1750693542674,57.38105984,133.56,133.46,106.86]
[1750693542882,57.38105984,133.56,133.47,12.52105984]
[1750693543373,12.52105984,133.54,133.47,12.52105984]